bitfinex/quotes_BTCUSD_20240827
["timestamp","ask_amount","ask_price","bid_price","bid_amount"]
[1724798341836,0.00012,59184.0,59165.0,0.02734608]
[1724798341837,0.3952,59183.0,59165.0,0.02734608]
[1724798342063,0.3952,59183.0,59150.0,0.465336]
[1724798342064,0.42242494,59182.0,59157.0,0.50540786]
[1724798342287,0.42242494,59182.0,59142.0,0.92180786]
[1724798342288,0.5756,59178.0,59142.0,0.92180786]
[1724798342504,0.12722494,59182.0,59157.0,0.50540786]
[1724798342505,0.1804,59175.0,59157.0,0.50540786]
[1724798342723,0.3952,59172.0,59142.0,0.50540786]
[1724798342942,0.1042254,59171.0,59142.0,0.50540786]
[1724798343165,0.3952,59172.0,59142.0,0.50540786]
[1724798343166,0.3952,59172.0,59143.0,0.16846077]
[1724798343387,0.3952,59172.0,59148.0,0.465336]
[1724798343620,0.3952,59172.0,59149.0,0.1]
[1724798343621,0.00422519,59171.0,59149.0,0.1]
[1724798343881,0.00422519,59171.0,59144.0,0.06788686]
[1724798343882,0.3952,59170.0,59144.0,0.06788686]
[1724798344092,0.1,59181.0,59139.0,0.00020355]
[1724798344093,0.3952,59168.0,59139.0,0.00020355]
[1724798344321,0.2076254,59169.0,59140.0,0.50540786]
[1724798344322,0.3806,59165.0,59140.0,0.50540786]
[1724798344546,0.12722618,59167.0,59140.0,0.50540786]
[1724798344547,0.3806,59162.0,59140.0,0.50540786]
[1724798344781,0.10422627,59161.0,59141.0,0.05056114]
[1724798345017,0.3806,59162.0,59141.0,0.05056114]
[1724798345276,0.3806,59162.0,59139.0,0.00020355]
[1724798345277,0.00422576,59160.0,59139.0,0.00020355]
[1724798345509,0.1873,59163.0,59141.0,0.50540786]
[1724798345510,0.413,59159.0,59141.0,0.50540786]
[1724798346004,0.413,59159.0,59142.0,0.3872]
[1724798346236,0.1873,59163.0,59145.0,0.005]
[1724798346462,0.375,59165.0,59144.0,0.1]
[1724798346686,0.375,59165.0,59145.0,0.17346077]
[1724798347120,0.5645,59168.0,59146.0,0.4872]
[1724798347353,0.00089871,59178.0,59149.0,0.470336]
[1724798347354,0.375,59173.0,59149.0,0.470336]
[1724798347584,0.375,59173.0,59150.0,1.74562162]
[1724798348038,0.375,59173.0,59151.0,0.1]
[1724798348261,0.375,59173.0,59147.0,0.04036384]
[1724798348262,0.00422475,59172.0,59147.0,0.04036384]
[1724798348477,0.00422519,59172.0,59148.0,0.05275638]
[1724798348916,0.00422519,59172.0,59148.0,0.15275638]
[1724798349151,0.00422519,59172.0,59148.0,0.65816424]
[1724798349152,0.4038,59171.0,59148.0,0.65816424]
[1724798349365,0.00422541,59170.0,59149.0,0.03251758]
[1724798350706,0.1843,59169.0,59144.0,1.5]
[1724798350939,0.1843,59169.0,59110.0,0.05028427]
[1724798350940,0.1825,59167.0,59145.0,0.50540786]
[1724798351170,0.3987,59164.0,59145.0,0.50540786]
[1724798351392,0.1,59168.0,59126.0,0.1927]
[1724798351393,0.4081,59160.0,59126.0,0.1927]
[1724798351629,0.4081,59158.0,59145.0,0.50540786]
[1724798351841,0.4081,59156.0,59126.0,0.1927]
[1724798352056,0.18812682,59155.0,59138.0,0.50540786]
[1724798352281,0.18812682,59155.0,59127.0,0.05761]
[1724798352282,0.4081,59154.0,59127.0,0.05761]
[1724798352529,0.00422682,59153.0,59127.0,0.05761]
[1724798353243,0.4081,59154.0,59127.0,0.05761]
[1724798353244,0.4081,59154.0,59127.0,0.27455172]
[1724798353471,0.4081,59160.0,59137.0,0.3839]
[1724798353688,0.4081,59160.0,59148.0,1.0]
[1724798356047,0.4081,59160.0,59149.0,1.5]
[1724798357638,0.4081,59160.0,59148.0,1.0]
[1724798357864,0.06405565,59159.0,59148.0,1.0]
[1724798358096,0.4081,59160.0,59148.0,1.0]
[1724798358725,0.4081,59160.0,59148.0,1.3912]
[1724798358943,0.4081,59160.0,59148.0,1.0]
[1724798362037,0.1902,59162.0,59148.0,1.0]
[1724798362244,0.3911,59165.0,59149.0,0.43501]
[1724798362461,0.1957,59168.0,59150.0,0.2961]
[1724798363542,0.00089871,59178.0,59152.0,0.4145]
[1724798363543,0.3981,59177.0,59152.0,0.4145]
[1724798363787,0.00089871,59178.0,59157.0,0.005]
[1724798363998,0.00089871,59178.0,59158.0,0.57796077]
[1724798364203,0.00089871,59178.0,59159.0,0.1]
[1724798364439,0.00089871,59178.0,59159.0,0.26846077]
[1724798364664,0.00089871,59178.0,59159.0,0.77386863]
[1724798364891,0.00089871,59178.0,59160.0,1.55761]
[1724798365118,0.00089871,59178.0,59161.0,0.26846077]
[1724798365367,0.00089871,59178.0,59171.0,0.465336]
[1724798365583,0.00089871,59178.0,59173.0,0.4095]
[1724798365797,0.00089871,59178.0,59174.0,1.5]
[1724798366020,0.00089871,59178.0,59175.0,0.1680278]
[1724798366253,0.03393,59242.0,59207.0,0.005]
[1724798366488,0.50540786,59229.0,59222.0,0.187]
[1724798366721,0.1933,59243.0,59222.0,0.187]
[1724798366937,0.19752017,59243.0,59222.0,0.187]
[1724798367149,0.1933,59243.0,59221.0,0.3773]
[1724798367364,0.1933,59243.0,59222.0,0.05757752]
[1724798367576,0.19751979,59243.0,59223.0,0.04348775]
[1724798367799,0.1933,59243.0,59223.0,0.04348775]
[1724798368253,0.19752006,59243.0,59223.0,0.04348775]
[1724798368472,0.19752006,59243.0,59217.0,0.1]
[1724798368685,0.19752006,59243.0,59217.0,0.60540786]
[1724798368904,0.19752006,59243.0,59217.0,0.1]
[1724798369137,0.19752006,59243.0,59217.0,0.15757752]
[1724798369348,0.19752006,59243.0,59218.0,0.05757752]
[1724798369560,0.19752006,59243.0,59219.0,0.0680278]
[1724798369965,0.19752006,59243.0,59220.0,0.05757752]
[1724798370173,0.00422038,59242.0,59220.0,0.05757752]
[1724798370622,0.19752038,59243.0,59219.0,0.0680278]
[1724798370857,0.0042203,59241.0,59220.0,0.05757752]
[1724798371071,0.1933,59243.0,59219.0,0.1680278]
[1724798371295,0.1933,59243.0,59220.0,0.05761]
[1724798371515,0.1933,59243.0,59220.0,0.11149735]
[1724798371751,0.19752008,59243.0,59220.0,0.11149735]
[1724798371973,0.2,59248.0,59243.0,0.5864]
[1724798371974,0.1,59248.0,59243.0,0.5864]
[1724798372434,0.0171875,59248.0,59244.0,1.55043369]
[1724798372675,0.00012,59264.0,59244.0,1.65043369]
[1724798372910,0.00012,59264.0,59256.0,0.465336]
[1724798373406,0.17902,59272.0,59256.0,0.465336]
[1724798373623,0.17902,59272.0,59257.0,0.0465336]
[1724798373845,0.4045718,59274.0,59257.0,0.0465336]
[1724798373846,0.0116718,59274.0,59258.0,0.75096077]
[1724798374068,0.0116718,59274.0,59266.0,0.465336]
[1724798374293,0.0116718,59274.0,59267.0,0.1]
[1724798374736,0.0116718,59274.0,59268.0,1.5]
[1724798374958,0.0116718,59274.0,59269.0,0.55125446]
[1724798375210,0.008987,59292.0,59271.0,0.3833]
[1724798375436,0.008987,59292.0,59281.0,0.465336]
[1724798375707,0.008987,59292.0,59282.0,0.1]
[1724798375931,0.008987,59292.0,59283.0,0.0565336]
[1724798376436,0.008987,59292.0,59283.0,0.55176077]
[1724798376689,0.00020356,59305.0,59286.0,0.005]
[1724798376960,0.00020356,59305.0,59283.0,0.92292971]
[1724798376961,0.3863,59304.0,59284.0,0.04896894]
[1724798377200,0.1848,59301.0,59284.0,0.1]
[1724798377663,0.1848,59301.0,59272.0,0.005]
[1724798377664,0.00468579,59300.0,59273.0,0.3833]
[1724798377923,0.00468579,59300.0,59263.0,0.51040786]
[1724798377924,0.3863,59299.0,59264.0,0.05054079]
[1724798378141,0.3863,59299.0,59263.0,0.50540786]
[1724798378142,0.3863,59292.0,59263.0,0.50540786]
[1724798378363,0.39051775,59291.0,59263.0,0.50540786]
[1724798378599,0.39051775,59291.0,59259.0,0.3833]
[1724798378600,0.3988,59290.0,59259.0,0.3833]
[1724798378831,0.3988,59290.0,59252.0,0.1992]
[1724798378832,0.3988,59288.0,59264.0,0.50540786]
[1724798379062,0.32101766,59289.0,59264.0,0.50540786]
[1724798379063,0.3988,59286.0,59264.0,0.50540786]
[1724798379283,0.3988,59286.0,59265.0,0.05054079]
[1724798379541,0.00421766,59285.0,59265.0,0.05054079]
[1724798379773,0.00421766,59285.0,59266.0,0.50540786]
[1724798379774,0.3988,59283.0,59266.0,0.50540786]
[1724798379983,0.10421778,59282.0,59252.0,0.3991]
[1724798380207,0.12721778,59282.0,59262.0,0.50540786]
[1724798380465,0.12721778,59282.0,59253.0,0.03991]
[1724798380735,0.12721778,59282.0,59281.0,0.002]
[1724798380961,0.12721778,59282.0,59247.0,0.50540786]
[1724798380962,0.005,59277.0,59236.0,0.4074]
[1724798381291,0.005,59277.0,59220.0,0.465336]
[1724798381292,0.3871,59269.0,59266.0,0.50540786]
[1724798381522,0.3871,59269.0,59248.0,0.50540786]
[1724798381765,0.00421858,59268.0,59249.0,0.05054079]
[1724798381970,0.1825,59267.0,59249.0,0.05054079]
[1724798383832,0.802452,59327.0,59249.0,0.05054079]
[1724798383833,0.1995,59274.0,59251.0,0.1829]
[1724798384070,0.1995,59274.0,59249.0,0.05054079]
[1724798384071,0.3879,59293.0,59270.0,0.5703]
[1724798384280,0.00020356,59305.0,59275.0,0.005]
[1724798384505,0.00020356,59305.0,59276.0,0.5703]
[1724798384712,0.00020356,59305.0,59277.0,1.6]
[1724798384924,0.00020356,59305.0,59278.0,0.06004293]
[1724798385173,0.00020356,59305.0,59280.0,0.3874]
[1724798385381,0.00020356,59305.0,59281.0,0.19146077]
[1724798385592,0.00020356,59305.0,59282.0,1.5]
[1724798385804,0.00020356,59305.0,59283.0,0.1]
[1724798385805,0.00441893,59305.0,59283.0,0.1]
[1724798386012,0.00020356,59305.0,59284.0,0.06559487]
[1724798386460,0.00020356,59305.0,59285.0,1.54335001]
[1724798387308,0.00421572,59304.0,59284.0,0.06559487]
[1724798387541,0.00020356,59305.0,59284.0,0.06559487]
[1724798387542,0.00441928,59305.0,59284.0,0.06559487]
[1724798387780,0.5874,59307.0,59284.0,0.06559487]
[1724798387781,0.57810528,59307.0,59286.0,0.04005493]
[1724798387987,0.57810528,59307.0,59287.0,0.01056498]
[1724798388195,0.57810528,59307.0,59288.0,0.00337264]
[1724798388427,0.57810528,59307.0,59288.0,0.04342757]
[1724798388639,0.57810528,59307.0,59289.0,0.00337236]
[1724798388851,0.57810528,59307.0,59288.0,0.04005493]
[1724798389060,0.57810528,59307.0,59290.0,0.04005493]
[1724798389269,0.57810528,59307.0,59289.0,0.01592422]
[1724798389482,0.57810528,59307.0,59290.0,0.04005493]
[1724798390331,0.05994507,59290.0,59287.0,0.01056498]
[1724798390540,0.05994507,59290.0,59288.0,0.18657676]
[1724798390747,0.05994507,59290.0,59289.0,0.1]
[1724798391212,0.05994507,59290.0,59289.0,0.5128]
[1724798391647,0.05994507,59290.0,59289.0,0.55235035]
[1724798392059,0.6099,59312.0,59289.0,0.5128]
[1724798392060,0.47406047,59312.0,59289.0,0.5128]
[1724798392308,0.47406047,59312.0,59290.0,0.04947795]
[1724798392309,0.02472638,59311.0,59290.0,0.04947795]
[1724798392509,0.02472638,59311.0,59282.0,0.4128]
[1724798392510,0.02472638,59311.0,59283.0,0.50540786]
[1724798392713,0.02472638,59311.0,59284.0,0.1]
[1724798393536,0.12472638,59311.0,59284.0,0.1]
[1724798393754,0.4058,59310.0,59284.0,0.1]
[1724798393975,0.12472638,59311.0,59247.0,0.50540786]
[1724798393976,0.4058,59308.0,59277.0,0.50540786]
[1724798394200,0.18392506,59309.0,59277.0,0.50540786]
[1724798394201,0.005,59305.0,59277.0,0.50540786]
[1724798394408,0.005,59303.0,59277.0,0.50540786]
[1724798394627,0.00172638,59304.0,59253.0,0.470336]
[1724798394628,0.005,59299.0,59260.0,0.4139]
[1724798394836,0.00172638,59298.0,59278.0,0.50540786]
[1724798395055,0.00172638,59298.0,59260.0,0.4139]
[1724798395057,0.19,59293.0,59260.0,0.4139]
[1724798395268,0.19,59293.0,59253.0,0.1902]
[1724798395269,0.19,59285.0,59253.0,0.1902]
[1724798395491,0.12122638,59284.0,59253.0,0.1902]
[1724798395733,0.12122638,59284.0,59263.0,0.0033747]
[1724798395734,0.123,59284.0,59263.0,0.0033747]
[1724798395959,0.123,59284.0,59264.0,0.4155]
[1724798395960,0.00172638,59284.0,59264.0,0.4155]
[1724798396425,0.19,59285.0,59264.0,0.4155]
[1724798396867,0.19,59285.0,59265.0,0.5087817]
[1724798397078,0.4049,59290.0,59266.0,0.09242817]
[1724798397299,0.4049,59302.0,59268.0,0.4155]
[1724798397550,0.00172638,59301.0,59269.0,0.1]
[1724798397769,0.46421264,59300.0,59270.0,0.03320963]
[1724798397972,0.00172638,59299.0,59270.0,0.03320963]
[1724798398184,0.00172638,59299.0,59271.0,0.4155]
[1724798398390,0.00172638,59298.0,59272.0,0.1]
[1724798398607,0.00172638,59298.0,59271.0,0.4155]
[1724798398608,0.41,59296.0,59271.0,0.4155]
[1724798398847,0.41,59296.0,59270.0,0.03320963]
[1724798398848,0.12472638,59295.0,59272.0,0.50540786]
[1724798399058,0.41,59293.0,59272.0,0.50540786]
[1724798399290,0.02472638,59292.0,59272.0,0.50540786]
[1724798399508,0.02472638,59292.0,59273.0,0.05386175]
[1724798399509,0.12472638,59292.0,59273.0,0.05386175]
[1724798399725,0.12472638,59292.0,59265.0,0.4034]
[1724798399939,0.12472638,59292.0,59266.0,0.50540786]
[1724798400173,0.00172638,59291.0,59266.0,0.50878182]
[1724798400386,0.00172638,59291.0,59265.0,0.4034]
[1724798400387,0.00172638,59291.0,59267.0,0.59662604]
[1724798400609,0.02472638,59291.0,59268.0,0.60540786]
[1724798400824,0.00172638,59291.0,59268.0,0.60540786]
[1724798401036,0.00172638,59291.0,59269.0,0.00337377]
[1724798401253,0.023,59292.0,59272.0,0.1952]
[1724798401254,0.00172638,59292.0,59272.0,0.1952]
[1724798401479,0.41,59300.0,59272.0,0.1952]
[1724798401480,0.00172638,59299.0,59273.0,0.1]
[1724798401693,0.00172638,59299.0,59272.0,0.1952]
[1724798401914,0.00172638,59299.0,59275.0,0.50540786]
[1724798401915,0.10172638,59299.0,59275.0,0.50540786]
[1724798402129,0.10172638,59299.0,59272.0,0.1952]
[1724798402130,0.4163,59297.0,59272.0,0.1952]
[1724798402362,0.4163,59295.0,59273.0,0.50540786]
[1724798402574,0.00172638,59294.0,59273.0,0.50540786]
[1724798402814,0.07097264,59293.0,59273.0,0.50540786]
[1724798403020,0.02472638,59292.0,59273.0,0.50540786]
[1724798403461,0.00172638,59291.0,59273.0,0.50540786]
[1724798403885,0.023,59293.0,59273.0,0.50540786]
[1724798403886,0.00172638,59294.0,59275.0,0.3951]
[1724798404191,0.00172638,59294.0,59276.0,0.28895079]
[1724798404652,0.00172638,59303.0,59276.0,0.28895079]
[1724798404869,0.00172638,59303.0,59277.0,2.00878113]
[1724798405106,0.3895,59304.0,59277.0,2.00878113]
[1724798405340,0.1,59303.0,59277.0,2.00878113]
[1724798405556,0.10172638,59303.0,59278.0,0.03558701]
[1724798406030,0.10172638,59303.0,59278.0,0.54099487]
[1724798406274,0.10172638,59303.0,59279.0,0.0033733]
[1724798406507,0.10172638,59303.0,59280.0,0.3951]
[1724798406508,0.1,59303.0,59280.0,0.3951]
[1724798406749,0.1,59303.0,59281.0,0.00337307]
[1724798406750,0.00172638,59302.0,59281.0,0.00337307]
[1724798406985,0.00172638,59302.0,59282.0,0.09005079]
[1724798407243,0.000814,59307.0,59285.0,0.3951]
[1724798407466,0.000814,59307.0,59284.0,0.1989]
[1724798407467,0.000814,59307.0,59286.0,0.00337232]
[1724798407693,0.000814,59307.0,59287.0,0.3951]
[1724798407694,0.00172638,59306.0,59287.0,0.3951]
[1724798407929,0.00172638,59306.0,59288.0,0.03558701]
[1724798408164,0.000814,59307.0,59288.0,0.03558701]
[1724798410338,0.000814,59307.0,59289.0,0.00337246]
[1724798410557,0.000814,59307.0,59289.0,0.3951]
[1724798410782,0.000814,59307.0,59288.0,0.03558701]
[1724798410783,0.000814,59307.0,59291.0,0.3951]
[1724798411021,0.000814,59307.0,59288.0,0.03558701]
[1724798411022,0.000814,59307.0,59292.0,0.2994]
[1724798411282,0.000814,59307.0,59294.0,0.1994]
[1724798411526,0.017674,59307.0,59295.0,0.1]
[1724798411837,0.000815,59311.0,59298.0,0.5897]
[1724798411923,0.000815,59311.0,59299.0,0.5897]
[1724798412135,0.000815,59311.0,59300.0,0.3903]
[1724798412346,0.000815,59311.0,59306.0,0.3903]
[1724798412565,0.000815,59311.0,59307.0,0.33663]
[1724798412788,0.000815,59311.0,59308.0,0.3893]
[1724798413035,0.00816,59341.0,59310.0,0.70300786]
[1724798413268,0.48206535,59371.0,59310.0,0.70300786]
[1724798413269,0.50540786,59370.0,59354.0,0.3893]
[1724798413482,0.50540786,59370.0,59353.0,0.465336]
[1724798413483,0.09614919,59380.0,59369.0,0.005]
[1724798413752,0.07211189,59399.0,59369.0,0.005]
[1724798413753,0.4105,59397.0,59379.0,0.005]
[1724798414000,0.00020345,59408.0,59382.0,0.005]
[1724798414253,0.00020345,59408.0,59396.0,0.005]
[1724798414254,0.011671,59397.0,59396.0,0.005]
[1724798414499,0.00020345,59408.0,59386.0,0.005]
[1724798414500,0.3782,59405.0,59386.0,0.005]
[1724798414759,0.3782,59405.0,59386.0,0.03558701]
[1724798414760,0.00172638,59397.0,59386.0,0.03558701]
[1724798414983,0.00172638,59397.0,59383.0,1.5]
[1724798415205,0.00172638,59397.0,59363.0,0.50540786]
[1724798415206,0.37992638,59396.0,59363.0,0.68630786]
[1724798415448,0.37992638,59396.0,59363.0,0.50540786]
[1724798415449,0.465336,59382.0,59363.0,0.50540786]
[1724798415713,0.50172638,59396.0,59363.0,0.50540786]
[1724798415714,0.465336,59371.0,59363.0,0.50540786]
[1724798415953,0.465336,59371.0,59346.0,0.50540786]
[1724798415954,0.87626238,59370.0,59346.0,0.50540786]
[1724798416207,0.6017,59369.0,59347.0,0.005]
[1724798416428,0.6017,59369.0,59346.0,0.50540786]
[1724798416429,0.6017,59369.0,59335.0,0.005]
[1724798416430,0.00172638,59368.0,59335.0,0.005]
[1724798416640,0.00172638,59368.0,59343.0,0.50540786]
[1724798416641,0.10172638,59368.0,59343.0,0.50540786]
[1724798416891,0.10172638,59368.0,59328.0,0.89500786]
[1724798416892,0.4092,59367.0,59347.0,0.51040786]
[1724798417115,0.00815,59371.0,59356.0,0.005]
[1724798417353,0.00815,59371.0,59354.0,0.005]
[1724798417354,0.00172638,59370.0,59354.0,0.005]
[1724798417616,0.00172638,59370.0,59352.0,0.50540786]
[1724798417832,0.00815,59371.0,59352.0,0.50540786]
[1724798417833,0.00815,59371.0,59354.0,0.005]
[1724798418050,0.00815,59371.0,59342.0,0.1965]
[1724798418051,0.00172638,59370.0,59350.0,0.005]
[1724798418257,0.00172638,59370.0,59351.0,0.005]
[1724798418475,0.00172638,59370.0,59351.0,0.05604079]
[1724798418707,0.00815,59371.0,59359.0,0.005]
[1724798418708,0.00987638,59371.0,59359.0,0.005]
[1724798418930,0.40652283,59375.0,59362.0,0.005]
[1724798419158,0.40652283,59375.0,59351.0,0.05104079]
[1724798419159,0.40652283,59375.0,59353.0,0.005]
[1724798419444,0.40652283,59375.0,59359.0,0.005]
[1724798420298,0.16833,59407.0,59344.0,0.1]
[1724798420299,0.1925,59397.0,59377.0,0.005]
[1724798420957,0.1925,59397.0,59378.0,0.3896]
[1724798421194,0.1925,59397.0,59368.0,0.005]
[1724798421425,0.00020345,59408.0,59399.0,0.005]
[1724798421866,0.00020345,59408.0,59399.0,0.3946]
[1724798422123,0.00020345,59408.0,59399.0,0.43406]
[1724798422349,0.00020345,59408.0,59399.0,0.005]
[1724798422811,0.00020345,59408.0,59399.0,1.505]
[1724798423040,0.00020345,59408.0,59399.0,0.005]
[1724798423267,0.00020345,59408.0,59399.0,0.17346077]
[1724798423490,0.00020345,59408.0,59407.0,0.005]
[1724798423713,0.00020345,59408.0,59407.0,0.62207265]
[1724798423925,0.00020345,59408.0,59407.0,0.55361188]
[1724798424139,0.00020345,59408.0,59407.0,0.71893169]
[1724798424357,0.02548048,59416.0,59407.0,0.99744357]
[1724798424358,0.00796265,59416.0,59407.0,0.99744357]
[1724798424576,0.00796265,59416.0,59415.0,0.005]
[1724798425050,0.00020353,59424.0,59416.0,0.1965]
[1724798425308,0.00020316,59440.0,59439.0,0.005]
[1724798425536,0.00020316,59440.0,59417.0,0.27182559]
[1724798425537,0.00020316,59440.0,59427.0,0.3946]
[1724798425784,0.00020316,59440.0,59408.0,0.54812583]
[1724798425785,0.1976,59438.0,59413.0,0.005]
[1724798426029,0.1976,59438.0,59398.0,0.465336]
[1724798426030,0.3776,59436.0,59411.0,0.50540786]
[1724798426299,0.06212932,59435.0,59412.0,0.50540786]
[1724798426511,0.44740296,59434.0,59411.0,0.50540786]
[1724798426746,0.44740296,59434.0,59400.0,0.005]
[1724798426747,0.3776,59434.0,59400.0,0.005]
[1724798426968,0.3776,59434.0,59392.0,0.89820786]
[1724798426969,0.123,59433.0,59412.0,0.50540786]
[1724798427237,0.123,59433.0,59411.0,0.005]
[1724798427475,0.123,59433.0,59419.0,0.005]
[1724798427476,0.1,59433.0,59419.0,0.005]
[1724798427724,0.3776,59434.0,59419.0,0.005]
[1724798427941,0.00020316,59440.0,59419.0,0.005]
[1724798428169,0.00020316,59440.0,59425.0,0.005]
[1724798428389,0.00020316,59440.0,59412.0,0.3928]
[1724798428390,0.00020316,59440.0,59432.0,0.005]
[1724798429271,0.00020316,59440.0,59414.0,0.60540786]
[1724798429272,0.00020316,59440.0,59426.0,0.005]
[1724798429738,0.00020316,59440.0,59414.0,0.60540786]
[1724798429739,0.00020316,59440.0,59434.0,0.005]
[1724798429960,0.00020316,59440.0,59436.0,0.005]
[1724798430205,0.000813,59437.0,59436.0,0.005]
[1724798430453,0.000813,59437.0,59436.0,0.22951]
[1724798430944,0.1866,59464.0,59436.0,0.22951]
[1724798430946,0.3884,59482.0,59459.0,0.4091]
[1724798431165,0.3884,59482.0,59457.0,0.005]
[1724798431166,0.50540786,59475.0,59457.0,0.005]
[1724798431419,0.3884,59482.0,59450.0,0.005]
[1724798431664,0.3884,59482.0,59443.0,0.4107]
[1724798431665,0.3884,59482.0,59458.0,0.005]
[1724798431879,0.1866,59484.0,59440.0,0.005]
[1724798431880,0.29755542,59459.0,59440.0,0.005]
[1724798432104,0.29755542,59459.0,59436.0,0.04141]
[1724798432105,0.04952054,59458.0,59436.0,0.005]
[1724798432388,0.04952054,59458.0,59436.0,0.51040786]
[1724798432608,0.46553952,59479.0,59453.0,0.005]
[1724798432609,0.1967,59468.0,59453.0,0.005]
[1724798432826,0.00792949,59457.0,59445.0,0.005]
[1724798433050,0.00792949,59457.0,59437.0,0.3777]
[1724798433051,0.1967,59468.0,59437.0,0.3777]
[1724798433052,0.1,59467.0,59437.0,0.3777]
[1724798433271,0.1,59467.0,59418.0,0.465336]
[1724798433272,0.1,59467.0,59446.0,0.005]
[1724798433507,0.1,59467.0,59438.0,0.50877237]
[1724798433508,0.1967,59468.0,59453.0,0.005]
[1724798433735,0.1967,59468.0,59447.0,0.005]
[1724798434183,0.1967,59468.0,59429.0,0.1]
[1724798434184,0.1967,59468.0,59456.0,0.005]
[1724798434417,0.1967,59477.0,59459.0,0.005]
[1724798434659,0.1967,59477.0,59442.0,0.1]
[1724798434660,0.1967,59477.0,59447.0,0.3777]
[1724798434925,0.1967,59477.0,59445.0,0.191]
[1724798434926,0.1967,59477.0,59445.0,0.005]
[1724798435169,0.1967,59477.0,59446.0,0.005]
[1724798435170,0.39,59459.0,59446.0,0.005]
[1724798435396,0.39,59467.0,59445.0,0.005]
[1724798435614,0.00718827,59458.0,59446.0,0.005]
[1724798435832,0.00718827,59458.0,59437.0,0.3777]
[1724798435833,0.1,59466.0,59445.0,0.005]
[1724798436067,0.0072014,59457.0,59443.0,0.005]
[1724798436290,0.2197,59459.0,59440.0,0.005]
[1724798436291,0.023,59456.0,59440.0,0.005]
[1724798436507,0.00719852,59456.0,59440.0,0.005]
[1724798436734,0.00719852,59456.0,59445.0,0.005]
[1724798436961,0.00719852,59456.0,59434.0,0.3777]
[1724798436962,0.00719852,59456.0,59443.0,0.005]
[1724798437181,0.5867,59467.0,59443.0,0.005]
[1724798437496,0.00807588,59455.0,59443.0,0.005]
[1724798437700,0.5867,59467.0,59435.0,0.05687]
[1724798437701,0.1,59466.0,59435.0,0.06187]
[1724798437920,0.1,59466.0,59435.0,0.51040786]
[1724798437921,0.3792,59459.0,59435.0,0.51040786]
[1724798438164,0.3792,59459.0,59438.0,0.005]
[1724798438406,0.3792,59459.0,59433.0,0.005]
[1724798438407,0.03107235,59458.0,59433.0,0.005]
[1724798438631,0.04184223,59457.0,59434.0,0.50540786]
[1724798438879,0.04184223,59457.0,59433.0,0.005]
[1724798438880,0.5987,59456.0,59433.0,0.005]
[1724798439096,0.5987,59456.0,59434.0,0.50540786]
[1724798439097,0.1,59455.0,59434.0,0.50540786]
[1724798439308,0.1,59455.0,59433.0,0.005]
[1724798439309,0.023,59454.0,59433.0,0.005]
[1724798439524,0.0225,59454.0,59433.0,0.005]
[1724798439752,0.0225,59454.0,59421.0,0.005]
[1724798439753,0.4570878,59453.0,59421.0,0.005]
[1724798439968,0.4570878,59453.0,59394.0,0.005]
[1724798439969,0.3792,59451.0,59420.0,0.005]
[1724798440232,0.07760878,59450.0,59422.0,0.005]
[1724798440508,0.07760878,59450.0,59411.0,0.388]
[1724798440509,0.10802149,59450.0,59424.0,0.005]
[1724798440744,0.10802149,59450.0,59428.0,0.005]
[1724798440986,0.3792,59448.0,59420.0,0.005]
[1724798441247,0.3792,59448.0,59437.0,0.005]
[1724798441456,0.3792,59448.0,59420.0,0.16846077]
[1724798441457,0.00802149,59447.0,59428.0,0.005]
[1724798441684,0.00802149,59447.0,59424.0,0.388]
[1724798441685,0.3792,59452.0,59429.0,0.005]
[1724798441905,0.3792,59452.0,59424.0,0.388]
[1724798441906,0.00802149,59446.0,59424.0,0.393]
[1724798442125,0.00802149,59446.0,59436.0,0.0008932]
[1724798442606,0.00802149,59445.0,59436.0,0.0008932]
[1724798443054,0.00802149,59444.0,59436.0,0.0008932]
[1724798443281,0.3792,59452.0,59436.0,0.0008932]
[1724798443417,0.3912,59450.0,59436.0,0.0008932]
[1724798443645,0.023,59449.0,59436.0,0.0008932]
[1724798443875,0.123,59449.0,59436.0,0.0008932]
[1724798444075,0.3912,59447.0,59436.0,0.0008932]
[1724798444281,0.20142149,59448.0,59436.0,0.0008932]
[1724798444282,0.3912,59445.0,59436.0,0.0008932]
[1724798444481,0.123,59444.0,59436.0,0.0008932]
[1724798444890,0.13102149,59444.0,59436.0,0.0008932]
[1724798445129,0.00802149,59444.0,59436.0,0.0008932]
[1724798446010,0.00802149,59444.0,59437.0,0.00336474]
[1724798446232,0.00802149,59444.0,59436.0,0.0008932]
[1724798446464,0.38752149,59444.0,59436.0,0.0008932]
[1724798446676,0.04659553,59443.0,59436.0,0.0008932]
[1724798447108,0.1941,59442.0,59436.0,0.0008932]
[1724798447561,0.00695522,59448.0,59436.0,0.0008932]
[1724798447562,0.00787921,59441.0,59436.0,0.0008932]
[1724798448002,0.39790467,59448.0,59436.0,0.0008932]
[1724798448244,0.00787921,59440.0,59436.0,0.0008932]
[1724798448452,0.392012,59459.0,59436.0,0.0008932]
[1724798448667,0.00782354,59439.0,59437.0,0.04144932]
[1724798448904,0.00782354,59439.0,59436.0,0.0008932]
[1724798448905,0.39881467,59459.0,59436.0,0.0008932]
[1724798449178,0.123,59458.0,59436.0,0.0008932]
[1724798449408,0.13084116,59458.0,59436.0,0.0008932]
[1724798449612,0.20444174,59458.0,59436.0,0.0008932]
[1724798450742,0.1912,59456.0,59436.0,0.0008932]
[1724798450969,0.4769,59455.0,59436.0,0.0008932]
[1724798451199,0.50775015,59455.0,59436.0,0.0008932]
[1724798452137,0.13085015,59455.0,59436.0,0.0008932]
[1724798452355,0.3769,59444.0,59436.0,0.0008932]
[1724798452567,0.023,59443.0,59436.0,0.0008932]
[1724798452785,0.0078363,59443.0,59436.0,0.0008932]
[1724798453468,0.3912,59442.0,59436.0,0.0008932]
[1724798453686,0.40033618,59442.0,59436.0,0.0008932]
[1724798453904,0.06915362,59441.0,59436.0,0.0008932]
[1724798454126,0.00913618,59442.0,59420.0,0.50540786]